[Event "Early-Titled-Tuesday-Blitz-May-07-2024"]
[Site "Chess.com"]
[Date "2024.05.07"]
[Round "5"]
[White "Perecke"]
[Black "Elegance_Riks"]
[Result "1-0"]
[WhiteElo "2553"]
[BlackElo "2742"]
[TimeControl "180+1"]
[EndTime "9:03:19 PDT"]
[Termination "Perecke won by resignation"]

1. e4 {[%clk 0:03:00.9]} 1... e6 {[%clk 0:02:58.8]} 2. d4 {[%clk 0:03:00.5]}
2... d5 {[%clk 0:02:56.8]} 3. Nc3 {[%clk 0:03:00.3]} 3... Bb4 {[%clk 0:02:56.1]}
4. e5 {[%clk 0:03:00.3]} 4... c5 {[%clk 0:02:56.1]} 5. Bd2 {[%clk 0:03:00]} 5...
Ne7 {[%clk 0:02:53.8]} 6. a3 {[%clk 0:02:59.6]} 6... Bxc3 {[%clk 0:02:40.2]} 7.
Bxc3 {[%clk 0:03:00.5]} 7... Nbc6 {[%clk 0:02:38.9]} 8. Nf3 {[%clk 0:02:56.1]}
8... cxd4 {[%clk 0:02:38.1]} 9. Bxd4 {[%clk 0:02:54.3]} 9... Nxd4 {[%clk
0:02:31.9]} 10. Qxd4 {[%clk 0:02:36.2]} 10... Nc6 {[%clk 0:02:26.1]} 11. Qg4
{[%clk 0:02:24.8]} 11... O-O {[%clk 0:02:19]} 12. Bd3 {[%clk 0:02:24.4]} 12...
f5 {[%clk 0:02:19.3]} 13. exf6 {[%clk 0:02:15.2]} 13... Qxf6 {[%clk 0:02:18.9]}
14. O-O-O {[%clk 0:02:14.2]} 14... e5 {[%clk 0:02:14.3]} 15. Qh5 {[%clk
0:00:40]} 15... g6 {[%clk 0:02:13.5]} 16. Qh6 {[%clk 0:00:37.6]} 16... e4 {[%clk
0:02:12]} 17. Ng5 {[%clk 0:00:36.2]} 17... Qg7 {[%clk 0:02:12.4]} 18. Qxg7+
{[%clk 0:00:34.8]} 18... Kxg7 {[%clk 0:02:12.9]} 19. Bb5 {[%clk 0:00:33.1]}
19... h6 {[%clk 0:02:07.5]} 20. Nh3 {[%clk 0:00:32.5]} 20... Bxh3 {[%clk
0:02:07.5]} 21. gxh3 {[%clk 0:00:31.9]} 21... Rad8 {[%clk 0:02:08.1]} 22. Rd2
{[%clk 0:00:29.6]} 22... a6 {[%clk 0:02:05.9]} 23. Ba4 {[%clk 0:00:27.6]} 23...
Na5 {[%clk 0:01:52.7]} 24. Rhd1 {[%clk 0:00:25.5]} 24... Rf5 {[%clk 0:01:47.5]}
25. c3 {[%clk 0:00:15.1]} 25... Nc4 {[%clk 0:01:40.7]} 26. Re2 {[%clk 0:00:13]}
26... Ne5 {[%clk 0:01:31.6]} 27. Rxe4 {[%clk 0:00:07.2]} 27... dxe4 {[%clk
0:01:31.4]} 28. Rxd8 {[%clk 0:00:07]} 28... Rxf2 {[%clk 0:01:23]} 29. Bc2 {[%clk
0:00:04.6]} 29... e3 {[%clk 0:01:23.4]} 30. Kd1 {[%clk 0:00:04.2]} 30... Nc4
{[%clk 0:01:19.1]} 31. Re8 {[%clk 0:00:02.3]} 31... Nxb2+ {[%clk 0:01:13.8]} 32.
Kc1 {[%clk 0:00:02.1]} 32... Nc4 {[%clk 0:01:13.7]} 33. Bb3 {[%clk 0:00:02.3]}
33... e2 {[%clk 0:01:06.3]} 34. Bxc4 {[%clk 0:00:01.9]} 34... Rf1+ {[%clk
0:01:06.6]} 35. Kd2 {[%clk 0:00:02.3]} 35... Ra1 {[%clk 0:00:59.5]} 36. Kxe2
{[%clk 0:00:02.4]} 36... b5 {[%clk 0:00:59.1]} 37. Bd3 {[%clk 0:00:02.2]} 37...
Rxa3 {[%clk 0:00:58.7]} 38. Kd2 {[%clk 0:00:02.8]} 38... Ra2+ {[%clk 0:00:58.5]}
39. Bc2 {[%clk 0:00:03.4]} 39... a5 {[%clk 0:00:58.8]} 40. Ra8 {[%clk
0:00:03.9]} 40... Ra3 {[%clk 0:00:58.4]} 41. Rb8 {[%clk 0:00:03.6]} 41... b4
{[%clk 0:00:58.2]} 42. cxb4 {[%clk 0:00:04.5]} 42... axb4 {[%clk 0:00:58.8]} 43.
Re8 {[%clk 0:00:02.1]} 43... Rxh3 {[%clk 0:00:58.9]} 44. Re2 {[%clk 0:00:02.7]}
44... b3 {[%clk 0:00:59.1]} 45. Bd3 {[%clk 0:00:02.8]} 45... g5 {[%clk
0:00:56.7]} 46. Kc3 {[%clk 0:00:03.3]} 46... h5 {[%clk 0:00:56.8]} 47. Rd2
{[%clk 0:00:04]} 47... g4 {[%clk 0:00:56.9]} 48. Kxb3 {[%clk 0:00:04.3]} 48...
Kf6 {[%clk 0:00:57]} 49. Kc4 {[%clk 0:00:04.4]} 49... Kg5 {[%clk 0:00:57.6]} 50.
Bf1 {[%clk 0:00:02.4]} 50... Re3 {[%clk 0:00:52]} 51. Kd4 {[%clk 0:00:02.5]}
51... Re8 {[%clk 0:00:51.8]} 52. Bg2 {[%clk 0:00:02.8]} 52... h4 {[%clk
0:00:52]} 53. Kc3 {[%clk 0:00:02.7]} 53... Rc8+ {[%clk 0:00:51.4]} 54. Kb2
{[%clk 0:00:02.6]} 54... h3 {[%clk 0:00:51.9]} 55. Be4 {[%clk 0:00:02.2]} 55...
Re8 {[%clk 0:00:50.2]} 56. Bc6 {[%clk 0:00:02.1]} 56... Re6 {[%clk 0:00:48.9]}
57. Bd5 {[%clk 0:00:02.3]} 57... Re5 {[%clk 0:00:49.2]} 58. Kc3 {[%clk
0:00:02.6]} 58... Kh4 {[%clk 0:00:49.7]} 59. Kc4 {[%clk 0:00:03]} 59... Re1
{[%clk 0:00:49.6]} 60. Kd4 {[%clk 0:00:02.8]} 60... Re8 {[%clk 0:00:49.4]} 61.
Rf2 {[%clk 0:00:02.2]} 61... Rb8 {[%clk 0:00:45.6]} 62. Be4 {[%clk 0:00:02.4]}
62... Rd8+ {[%clk 0:00:43.2]} 63. Ke5 {[%clk 0:00:02.3]} 63... Re8+ {[%clk
0:00:43.2]} 64. Kd4 {[%clk 0:00:02.9]} 64... Rb8 {[%clk 0:00:40.4]} 65. Ke3
{[%clk 0:00:02.8]} 65... Rb3+ {[%clk 0:00:37.8]} 66. Bd3 {[%clk 0:00:02.9]}
66... Rb8 {[%clk 0:00:36.9]} 67. Rf7 {[%clk 0:00:03.2]} 67... Re8+ {[%clk
0:00:36.4]} 68. Be4 {[%clk 0:00:03.2]} 68... Rh8 {[%clk 0:00:23.8]} 69. Kf4
{[%clk 0:00:03.3]} 69... Rh6 {[%clk 0:00:24.2]} 70. Bf5 {[%clk 0:00:02.9]} 70...
Kh5 {[%clk 0:00:18.9]} 71. Bxg4+ {[%clk 0:00:02.7]} 71... Kh4 {[%clk 0:00:18.8]}
72. Bf5 {[%clk 0:00:02.1]} 72... Kh5 {[%clk 0:00:17.8]} 73. Rg7 {[%clk
0:00:02.2]} 73... Rb6 {[%clk 0:00:14.3]} 74. Rh7+ {[%clk 0:00:02.5]} 74... Rh6
{[%clk 0:00:13.7]} 75. Bg4+ {[%clk 0:00:02.9]} 75... Kg6 {[%clk 0:00:13.8]} 76.
Ra7 {[%clk 0:00:03.8]} 76... Rh8 {[%clk 0:00:12.4]} 77. Kg3 {[%clk 0:00:03.7]}
77... Kf6 {[%clk 0:00:10.8]} 78. Bxh3 {[%clk 0:00:04]} 78... Rg8+ {[%clk
0:00:10.6]} 79. Bg4 {[%clk 0:00:04.6]} 79... Rb8 {[%clk 0:00:10.5]} 80. h4
{[%clk 0:00:04.9]} 80... Kg6 {[%clk 0:00:11]} 81. Ra6+ {[%clk 0:00:04.4]} 81...
Kh7 {[%clk 0:00:11.4]} 82. Kf4 {[%clk 0:00:05]} 82... Rb5 {[%clk 0:00:11]} 83.
Bf5+ {[%clk 0:00:05.3]} 83... Kg7 {[%clk 0:00:10.5]} 84. Kg5 {[%clk 0:00:05.5]}
84... Rb2 {[%clk 0:00:10.9]} 85. Ra7+ {[%clk 0:00:05.9]} 85... Kg8 {[%clk
0:00:11]} 86. Kh6 {[%clk 0:00:05.3]} 86... Rb6+ {[%clk 0:00:10.8]} 87. Bg6
{[%clk 0:00:05]} 87... Rb8 {[%clk 0:00:09.8]} 88. h5 {[%clk 0:00:02.4]} 88...
Rd8 {[%clk 0:00:09.7]} 89. Rg7+ {[%clk 0:00:02.8]} 89... Kh8 {[%clk 0:00:09.8]}
90. Re7 {[%clk 0:00:02.8]} 90... Kg8 {[%clk 0:00:10.2]} 91. Bf7+ {[%clk
0:00:02.8]} 91... Kh8 {[%clk 0:00:10.5]} 92. Ra7 {[%clk 0:00:03.3]} 92... Rd6+
{[%clk 0:00:10.5]} 93. Bg6 {[%clk 0:00:03.5]} 93... Rd8 {[%clk 0:00:11.1]} 94.
Kg5 {[%clk 0:00:04]} 94... Rd5+ {[%clk 0:00:11]} 95. Kf6 {[%clk 0:00:03.9]}
95... Rd8 {[%clk 0:00:11.6]} 96. Ke7 {[%clk 0:00:03.6]} 96... Rb8 {[%clk
0:00:11.8]} 97. Bf7 {[%clk 0:00:02.4]} 97... Rc8 {[%clk 0:00:11.1]} 98. Kf6
{[%clk 0:00:02.6]} 98... Rb8 {[%clk 0:00:11.2]} 99. Be6 {[%clk 0:00:02.7]} 99...
Re8 {[%clk 0:00:09.7]} 100. Ra6 {[%clk 0:00:01.9]} 100... Rb8 {[%clk 0:00:07.8]}
101. Ra7 {[%clk 0:00:02.3]} 101... Re8 {[%clk 0:00:07.6]} 102. Rb7 {[%clk
0:00:02.7]} 102... Rf8+ {[%clk 0:00:01.1]} 103. Kg5 {[%clk 0:00:02.6]} 103...
Re8 {[%clk 0:00:00.1]} 104. Kf5 {[%clk 0:00:02.6]} 104... Rf8+ {[%clk
0:00:00.4]} 105. Ke5 {[%clk 0:00:03]} 105... Re8 {[%clk 0:00:00.8]} 106. Rf7
{[%clk 0:00:03.1]} 106... Rg8 {[%clk 0:00:00.8]} 107. Kf6 {[%clk 0:00:03.3]}
107... Re8 {[%clk 0:00:01.3]} 108. Rd7 {[%clk 0:00:02.9]} 108... Rf8+ {[%clk
0:00:01.9]} 109. Kg5 {[%clk 0:00:03.2]} 109... Re8 {[%clk 0:00:02.4]} 110. Rd6
{[%clk 0:00:03.9]} 110... Rf8 {[%clk 0:00:02.7]} 111. Bf5 {[%clk 0:00:04.1]}
111... Rf7 {[%clk 0:00:02.8]} 112. Bg6 {[%clk 0:00:04.6]} 112... Rg7 {[%clk
0:00:03]} 113. Rd8+ {[%clk 0:00:04.8]} 113... Rg8 {[%clk 0:00:03.7]} 114. Rd7
{[%clk 0:00:05.4]} 114... Rf8 {[%clk 0:00:04.1]} 115. Bf5 {[%clk 0:00:05.1]}
115... Rg8+ {[%clk 0:00:04.4]} 116. Kf6 {[%clk 0:00:05.1]} 116... Re8 {[%clk
0:00:05.1]} 117. Be6 {[%clk 0:00:05.2]} 117... Rf8+ {[%clk 0:00:05.3]} 118. Ke5
{[%clk 0:00:04.2]} 118... Re8 {[%clk 0:00:05.7]} 119. Kf5 {[%clk 0:00:04.4]}
119... Rf8+ {[%clk 0:00:06.2]} 120. Ke4 {[%clk 0:00:05]} 120... Re8 {[%clk
0:00:06.7]} 121. Kd5 {[%clk 0:00:04.6]} 121... Rf8 {[%clk 0:00:06.9]} 122. Kd6
{[%clk 0:00:04.2]} 122... Re8 {[%clk 0:00:07.4]} 123. Bf7 {[%clk 0:00:04.5]}
123... Rb8 {[%clk 0:00:07.3]} 124. Bd5 {[%clk 0:00:04.4]} 124... Rf8 {[%clk
0:00:07.4]} 125. h6 {[%clk 0:00:04.6]} 125... Re8 {[%clk 0:00:07.8]} 126. Be6
{[%clk 0:00:04.3]} 126... Rb8 {[%clk 0:00:08.1]} 127. Ke5 {[%clk 0:00:04.5]}
127... Rf8 {[%clk 0:00:08.1]} 128. Bf7 {[%clk 0:00:04.2]} 128... Rb8 {[%clk
0:00:07.7]} 129. h7 {[%clk 0:00:04.2]} 129... Kxh7 {[%clk 0:00:07.2]} 130. Bd5+
{[%clk 0:00:04.5]} 130... Kh6 {[%clk 0:00:07.7]} 131. Kf6 {[%clk 0:00:04.3]}
131... Rb6+ {[%clk 0:00:07.2]} 132. Be6 {[%clk 0:00:04.7]} 132... Kh5 {[%clk
0:00:07.2]} 133. Rd4 {[%clk 0:00:04.5]} 133... Ra6 {[%clk 0:00:06.4]} 134. Rb4
{[%clk 0:00:04.6]} 134... Rc6 {[%clk 0:00:06.4]} 135. Rb3 {[%clk 0:00:04.6]}
135... Rxe6+ {[%clk 0:00:02.9]} 136. Kxe6 {[%clk 0:00:04.3]} 136... Kg4 {[%clk
0:00:03.8]} 137. Ke5 {[%clk 0:00:04.7]} 1-0

[Event "Early-Titled-Tuesday-Blitz-May-07-2024"]
[Site "Chess.com"]
[Date "2024.05.07"]
[Round "6"]
[White "Szparu"]
[Black "Suleyman_Chess06"]
[Result "0-1"]
[WhiteElo "2934"]
[BlackElo "2804"]
[TimeControl "180+1"]
[EndTime "9:07:56 PDT"]
[Termination "Suleyman_Chess06 won by resignation"]

1. e4 {[%clk 0:03:00.9]} 1... e6 {[%clk 0:02:59.9]} 2. d4 {[%clk 0:03:00.7]}
2... d5 {[%clk 0:03:00.8]} 3. e5 {[%clk 0:03:01.1]} 3... c5 {[%clk 0:03:00.9]}
4. c3 {[%clk 0:03:01.9]} 4... Nc6 {[%clk 0:03:01.8]} 5. Nf3 {[%clk 0:03:02.3]}
5... Qb6 {[%clk 0:03:00.4]} 6. a3 {[%clk 0:03:01.9]} 6... c4 {[%clk 0:02:58.3]}
7. Nbd2 {[%clk 0:03:00.5]} 7... Na5 {[%clk 0:02:58.9]} 8. Rb1 {[%clk 0:02:58.3]}
8... Bd7 {[%clk 0:02:58.5]} 9. Be2 {[%clk 0:02:54.5]} 9... Ne7 {[%clk
0:02:58.7]} 10. b4 {[%clk 0:02:41.9]} 10... cxb3 {[%clk 0:02:45.9]} 11. Nxb3
{[%clk 0:02:42.2]} 11... Nxb3 {[%clk 0:02:29.2]} 12. Rxb3 {[%clk 0:02:38.9]}
12... Qc7 {[%clk 0:02:28.7]} 13. Bd2 {[%clk 0:02:07.7]} 13... Nc6 {[%clk
0:02:24.3]} 14. c4 {[%clk 0:02:03.4]} 14... dxc4 {[%clk 0:02:15]} 15. Bxc4
{[%clk 0:02:04.3]} 15... Na5 {[%clk 0:02:15.3]} 16. Bxa5 {[%clk 0:02:03.7]}
16... Qxa5+ {[%clk 0:02:16.2]} 17. Qd2 {[%clk 0:02:01.4]} 17... Qc7 {[%clk
0:01:56.8]} 18. Rc3 {[%clk 0:01:49.7]} 18... Rc8 {[%clk 0:01:49.7]} 19. a4
{[%clk 0:01:33.8]} 19... Bb4 {[%clk 0:01:46.4]} 0-1

[Event "Early-Titled-Tuesday-Blitz-May-07-2024"]
[Site "Chess.com"]
[Date "2024.05.07"]
[Round "6"]
[White "scarabee43"]
[Black "2Coaches1Profile"]
[Result "1-0"]
[WhiteElo "2821"]
[BlackElo "2575"]
[TimeControl "180+1"]
[EndTime "9:08:19 PDT"]
[Termination "scarabee43 won by resignation"]

1. Nf3 {[%clk 0:03:00.9]} 1... g5 {[%clk 0:02:57.7]} 2. Nxg5 {[%clk 0:03:00]}
2... e5 {[%clk 0:02:57.5]} 3. d3 {[%clk 0:02:56]} 3... Be7 {[%clk 0:02:57.8]} 4.
Nf3 {[%clk 0:02:56.1]} 4... Nc6 {[%clk 0:02:58.2]} 5. c4 {[%clk 0:02:54.3]} 5...
Nf6 {[%clk 0:02:57.5]} 6. Nc3 {[%clk 0:02:54.7]} 6... d5 {[%clk 0:02:58.1]} 7.
cxd5 {[%clk 0:02:54.6]} 7... Nxd5 {[%clk 0:02:59]} 8. Bd2 {[%clk 0:02:52.8]}
8... Rg8 {[%clk 0:02:58.3]} 9. g3 {[%clk 0:02:53]} 9... Be6 {[%clk 0:02:56.3]}
10. Bg2 {[%clk 0:02:52.4]} 10... Qd7 {[%clk 0:02:56.6]} 11. a3 {[%clk
0:02:49.8]} 11... O-O-O {[%clk 0:02:56.5]} 12. b4 {[%clk 0:02:45.9]} 12... Bh3
{[%clk 0:02:49.6]} 13. O-O {[%clk 0:02:43.5]} 13... Nxc3 {[%clk 0:02:44.5]} 14.
Bxc3 {[%clk 0:02:43.5]} 14... Bxg2 {[%clk 0:02:44.6]} 15. Kxg2 {[%clk
0:02:43.7]} 15... h5 {[%clk 0:02:44.5]} 16. b5 {[%clk 0:02:41.7]} 16... Nd4
{[%clk 0:02:43.4]} 17. Bxd4 {[%clk 0:02:40.4]} 17... exd4 {[%clk 0:02:44.3]} 18.
Qa4 {[%clk 0:02:34.8]} 18... Kb8 {[%clk 0:02:43.7]} 19. Rfc1 {[%clk 0:02:31.5]}
19... h4 {[%clk 0:02:41.1]} 20. Rc4 {[%clk 0:02:30.7]} 20... hxg3 {[%clk
0:02:29]} 21. fxg3 {[%clk 0:02:30.6]} 21... Bf6 {[%clk 0:02:21.7]} 22. Rac1
{[%clk 0:02:29.1]} 22... Qe6 {[%clk 0:02:17.1]} 23. R1c2 {[%clk 0:02:23.6]}
23... Rd7 {[%clk 0:02:16.8]} 24. Nxd4 {[%clk 0:02:18]} 24... Qd5+ {[%clk
0:01:48.5]} 25. Nf3 {[%clk 0:02:17.6]} 25... Rh8 {[%clk 0:01:48.5]} 26. Rf4
{[%clk 0:01:57.8]} 26... Qe6 {[%clk 0:01:47.1]} 27. Qe4 {[%clk 0:01:54.2]} 27...
Qh3+ {[%clk 0:01:46]} 28. Kg1 {[%clk 0:01:54.8]} 28... Bd8 {[%clk 0:01:40.1]}
29. Qf5 {[%clk 0:01:53.3]} 29... Qxf5 {[%clk 0:01:32]} 30. Rxf5 {[%clk
0:01:53.1]} 30... Kc8 {[%clk 0:01:30.5]} 31. Kg2 {[%clk 0:01:52.7]} 31... Rh6
{[%clk 0:01:29.6]} 32. Ne5 {[%clk 0:01:50.3]} 32... Rd5 {[%clk 0:01:26.2]} 33.
Nxf7 {[%clk 0:01:49.9]} 33... Rxh2+ {[%clk 0:01:24.2]} 34. Kxh2 {[%clk
0:01:49.9]} 34... Rxf5 {[%clk 0:01:25.1]} 35. Nd6+ {[%clk 0:01:50.3]} 35... Kd7
{[%clk 0:01:24.5]} 36. Nxf5 {[%clk 0:01:49.9]} 1-0

[Event "Early-Titled-Tuesday-Blitz-May-07-2024"]
[Site "Chess.com"]
[Date "2024.05.07"]
[Round "6"]
[White "MateusViageiro"]
[Black "OppieZippy"]
[Result "0-1"]
[WhiteElo "2180"]
[BlackElo "2362"]
[TimeControl "180+1"]
[EndTime "9:08:20 PDT"]
[Termination "OppieZippy won by resignation"]

1. e4 {[%clk 0:02:50.5]} 1... Nf6 {[%clk 0:02:56.2]} 2. e5 {[%clk 0:02:50.4]}
2... Nd5 {[%clk 0:02:56.8]} 3. d4 {[%clk 0:02:50.5]} 3... d6 {[%clk 0:02:57.1]}
4. f4 {[%clk 0:02:50.8]} 4... dxe5 {[%clk 0:02:51.6]} 5. fxe5 {[%clk 0:02:50.9]}
5... c5 {[%clk 0:02:51.5]} 6. dxc5 {[%clk 0:02:49.8]} 6... Qa5+ {[%clk
0:02:48.8]} 7. c3 {[%clk 0:02:48]} 7... Qxc5 {[%clk 0:02:48.9]} 8. Nf3 {[%clk
0:02:47.5]} 8... Ne3 {[%clk 0:02:40.3]} 9. Qe2 {[%clk 0:02:36.6]} 9... Nxf1
{[%clk 0:02:40]} 10. Rxf1 {[%clk 0:02:36.3]} 10... Nc6 {[%clk 0:02:39.7]} 11.
Be3 {[%clk 0:02:35.3]} 11... Qd5 {[%clk 0:02:36.5]} 12. Bf4 {[%clk 0:02:33.5]}
12... Bf5 {[%clk 0:02:32.2]} 13. Nbd2 {[%clk 0:02:32.7]} 13... Bd3 {[%clk
0:02:12.5]} 14. Qe3 {[%clk 0:02:32.1]} 14... Bxf1 {[%clk 0:02:12.3]} 15. Kxf1
{[%clk 0:02:31.3]} 15... O-O-O {[%clk 0:02:11.9]} 16. Kg1 {[%clk 0:02:27.2]}
16... f6 {[%clk 0:02:07.3]} 17. a4 {[%clk 0:02:18.7]} 17... Qd3 {[%clk
0:02:07.1]} 18. Qe1 {[%clk 0:02:17.2]} 18... g5 {[%clk 0:02:05.9]} 19. Be3
{[%clk 0:02:15.3]} 19... g4 {[%clk 0:02:06.2]} 20. Nd4 {[%clk 0:02:14.5]} 20...
Nxe5 {[%clk 0:02:06.4]} 21. a5 {[%clk 0:02:12.9]} 21... a6 {[%clk 0:02:03.9]}
22. Bf4 {[%clk 0:02:03.3]} 22... Ng6 {[%clk 0:02:00.3]} 23. Bg3 {[%clk 0:02:03]}
23... e5 {[%clk 0:01:53.9]} 24. N4b3 {[%clk 0:02:01.2]} 24... Bc5+ {[%clk
0:01:49.7]} 25. Kh1 {[%clk 0:01:58.1]} 25... Be3 {[%clk 0:01:50.1]} 26. Nf1
{[%clk 0:01:54.8]} 26... Bf4 {[%clk 0:01:49.3]} 27. Nc5 {[%clk 0:01:52.6]} 27...
Qd5 {[%clk 0:01:47.7]} 28. Ne4 {[%clk 0:01:51.6]} 28... f5 {[%clk 0:01:44.9]}
29. Nf6 {[%clk 0:01:46.6]} 29... Qc6 {[%clk 0:01:45.4]} 30. Nh5 {[%clk
0:01:46.2]} 30... Bxg3 {[%clk 0:01:45]} 31. Nfxg3 {[%clk 0:01:46.1]} 31... f4
{[%clk 0:01:43.7]} 32. Nf5 {[%clk 0:01:45.4]} 32... f3 {[%clk 0:01:44.1]} 33.
gxf3 {[%clk 0:01:41.4]} 33... Qxf3+ {[%clk 0:01:43.7]} 34. Kg1 {[%clk
0:01:40.7]} 34... Qxf5 {[%clk 0:01:44.6]} 0-1

[Event "Early-Titled-Tuesday-Blitz-May-07-2024"]
[Site "Chess.com"]
[Date "2024.05.07"]
[Round "6"]
[White "Kostukov_Alex"]
[Black "chess_blitz00"]
[Result "0-1"]
[WhiteElo "2367"]
[BlackElo "2540"]
[TimeControl "180+1"]
[EndTime "9:08:34 PDT"]
[Termination "chess_blitz00 won by resignation"]

1. g3 {[%clk 0:02:56.9]} 1... d6 {[%clk 0:03:00.9]} 2. Bg2 {[%clk 0:02:57.2]}
2... Nf6 {[%clk 0:02:58.4]} 3. d3 {[%clk 0:02:54]} 3... Nbd7 {[%clk 0:02:59]} 4.
e4 {[%clk 0:02:54.8]} 4... g6 {[%clk 0:02:59.3]} 5. Qe2 {[%clk 0:02:52.2]} 5...
Bg7 {[%clk 0:02:59.9]} 6. f4 {[%clk 0:02:52.5]} 6... O-O {[%clk 0:03:00.6]} 7.
Nf3 {[%clk 0:02:53.1]} 7... c5 {[%clk 0:03:00.8]} 8. O-O {[%clk 0:02:53.5]} 8...
e6 {[%clk 0:03:00.4]} 9. c4 {[%clk 0:02:53.6]} 9... d5 {[%clk 0:02:57.4]} 10.
cxd5 {[%clk 0:02:52.7]} 10... exd5 {[%clk 0:02:57.6]} 11. e5 {[%clk 0:02:53.6]}
11... Ne8 {[%clk 0:02:56.9]} 12. e6 {[%clk 0:02:49.5]} 12... fxe6 {[%clk
0:02:54.6]} 13. Qxe6+ {[%clk 0:02:45.2]} 13... Kh8 {[%clk 0:02:55]} 14. Qxd5
{[%clk 0:02:23.4]} 14... Nef6 {[%clk 0:02:55.4]} 15. Qb3 {[%clk 0:02:21.2]}
15... Nb6 {[%clk 0:02:54.7]} 16. Ng5 {[%clk 0:02:13.7]} 16... Qd4+ {[%clk
0:02:46.1]} 17. Kh1 {[%clk 0:02:11.8]} 17... Bf5 {[%clk 0:02:46.5]} 18. Nf7+
{[%clk 0:01:41.5]} 18... Rxf7 {[%clk 0:02:44.5]} 19. Qxf7 {[%clk 0:01:42.3]}
19... Bxd3 {[%clk 0:02:37.5]} 20. Re1 {[%clk 0:01:36.8]} 20... Rf8 {[%clk
0:02:29.9]} 21. Qxb7 {[%clk 0:01:29.9]} 21... Ng4 {[%clk 0:02:18.1]} 22. h3
{[%clk 0:01:25.1]} 22... Qf2 {[%clk 0:02:03.6]} 23. Re7 {[%clk 0:00:54]} 23...
Qxg3 {[%clk 0:01:58]} 24. hxg4 {[%clk 0:00:50.1]} 24... Qh4+ {[%clk 0:01:56.6]}
0-1

[Event "Early-Titled-Tuesday-Blitz-May-07-2024"]
[Site "Chess.com"]
[Date "2024.05.07"]
[Round "6"]
[White "GMBenjaminBok"]
[Black "youngKID"]
[Result "1-0"]
[WhiteElo "3053"]
[BlackElo "2835"]
[TimeControl "180+1"]
[EndTime "9:08:50 PDT"]
[Termination "GMBenjaminBok won by resignation"]

1. d4 {[%clk 0:03:00.9]} 1... Nf6 {[%clk 0:02:57.6]} 2. c4 {[%clk 0:03:01.1]}
2... e6 {[%clk 0:02:58]} 3. Nc3 {[%clk 0:03:01.3]} 3... Bb4 {[%clk 0:02:58.3]}
4. Qc2 {[%clk 0:03:01.5]} 4... Nc6 {[%clk 0:02:57.7]} 5. Nf3 {[%clk 0:03:02]}
5... O-O {[%clk 0:02:56.2]} 6. Bd2 {[%clk 0:03:01.8]} 6... d6 {[%clk 0:02:55.8]}
7. a3 {[%clk 0:03:02]} 7... Bxc3 {[%clk 0:02:55.8]} 8. Bxc3 {[%clk 0:03:02.9]}
8... Qe7 {[%clk 0:02:56.5]} 9. e4 {[%clk 0:02:49.2]} 9... e5 {[%clk 0:02:56.3]}
10. d5 {[%clk 0:02:49.6]} 10... Nb8 {[%clk 0:02:44]} 11. Be2 {[%clk 0:02:46.1]}
11... a5 {[%clk 0:02:41.8]} 12. O-O {[%clk 0:02:39.4]} 12... a4 {[%clk
0:02:40.1]} 13. c5 {[%clk 0:02:39.7]} 13... Nbd7 {[%clk 0:02:32.5]} 14. cxd6
{[%clk 0:02:38.9]} 14... cxd6 {[%clk 0:02:33.4]} 15. Bb4 {[%clk 0:02:30.6]}
15... Nc5 {[%clk 0:01:48.5]} 16. Bxc5 {[%clk 0:02:30.1]} 16... dxc5 {[%clk
0:01:49.4]} 17. Bb5 {[%clk 0:02:30.5]} 17... Bd7 {[%clk 0:01:41.9]} 18. Bxd7
{[%clk 0:02:30.6]} 18... Nxd7 {[%clk 0:01:42.8]} 19. Nd2 {[%clk 0:02:25.4]}
19... b5 {[%clk 0:01:42.7]} 20. Rfd1 {[%clk 0:02:25.7]} 20... Rfc8 {[%clk
0:01:36.2]} 21. b3 {[%clk 0:02:19.6]} 21... axb3 {[%clk 0:01:31.8]} 22. Qxb3
{[%clk 0:02:20.5]} 22... c4 {[%clk 0:01:11.3]} 23. Qxb5 {[%clk 0:01:53]} 23...
c3 {[%clk 0:01:09.9]} 24. Nf1 {[%clk 0:01:53.2]} 24... c2 {[%clk 0:00:51.4]} 25.
Rdc1 {[%clk 0:01:53.1]} 25... Rxa3 {[%clk 0:00:51]} 26. Rxa3 {[%clk 0:01:47.9]}
26... Qxa3 {[%clk 0:00:51.9]} 27. Qxd7 {[%clk 0:01:48.1]} 1-0

[Event "Early-Titled-Tuesday-Blitz-May-07-2024"]
[Site "Chess.com"]
[Date "2024.05.07"]
[Round "6"]
[White "LyonBeast"]
[Black "kleinebeer98"]
[Result "0-1"]
[WhiteElo "3117"]
[BlackElo "2945"]
[TimeControl "180+1"]
[EndTime "9:08:52 PDT"]
[Termination "kleinebeer98 won by resignation"]

1. e4 {[%clk 0:03:00.9]} 1... e5 {[%clk 0:03:00.7]} 2. Nf3 {[%clk 0:03:01]} 2...
Nc6 {[%clk 0:03:01.5]} 3. Bb5 {[%clk 0:03:00.5]} 3... f5 {[%clk 0:03:02.2]} 4.
Nc3 {[%clk 0:02:55.7]} 4... fxe4 {[%clk 0:03:02.4]} 5. Nxe4 {[%clk 0:02:56.6]}
5... Nf6 {[%clk 0:03:03.1]} 6. Qe2 {[%clk 0:02:52.9]} 6... d5 {[%clk 0:03:03]}
7. Nxf6+ {[%clk 0:02:52.2]} 7... gxf6 {[%clk 0:03:03.9]} 8. Nd4 {[%clk 0:02:47]}
8... Qd6 {[%clk 0:02:42.9]} 9. Qh5+ {[%clk 0:02:42.4]} 9... Kd8 {[%clk
0:02:41.3]} 10. Nxc6+ {[%clk 0:02:42]} 10... bxc6 {[%clk 0:02:41.7]} 11. Be2
{[%clk 0:02:41]} 11... Be6 {[%clk 0:02:39.5]} 12. Qh4 {[%clk 0:02:22.8]} 12...
Rg8 {[%clk 0:02:37.2]} 13. O-O {[%clk 0:02:20.6]} 13... Be7 {[%clk 0:02:31.4]}
14. d4 {[%clk 0:02:20.2]} 14... Kd7 {[%clk 0:02:25.7]} 15. Re1 {[%clk
0:01:58.8]} 15... Rg6 {[%clk 0:02:22.2]} 16. c3 {[%clk 0:01:49.6]} 16... Rag8
{[%clk 0:02:21.2]} 17. g3 {[%clk 0:01:49.9]} 17... R8g7 {[%clk 0:02:02.5]} 18.
Bh5 {[%clk 0:01:28.9]} 18... Rg4 {[%clk 0:01:51.3]} 19. Bxg4 {[%clk 0:01:28.9]}
19... Rxg4 {[%clk 0:01:52.2]} 20. Qxh7 {[%clk 0:01:23.8]} 20... e4 {[%clk
0:01:52.9]} 21. Be3 {[%clk 0:01:19.5]} 21... f5 {[%clk 0:01:52.8]} 22. Qh6
{[%clk 0:01:13.9]} 22... Bf8 {[%clk 0:01:47.4]} 23. Qh7+ {[%clk 0:01:14]} 23...
Kc8 {[%clk 0:01:48]} 24. f4 {[%clk 0:01:02.8]} 24... exf3 {[%clk 0:01:37.2]} 25.
Bf2 {[%clk 0:01:03.1]} 25... f4 {[%clk 0:01:33.8]} 26. Red1 {[%clk 0:00:56.9]}
26... fxg3 {[%clk 0:01:32.9]} 27. hxg3 {[%clk 0:00:55.8]} 27... Rxg3+ {[%clk
0:01:32.3]} 28. Kf1 {[%clk 0:00:56.5]} 28... Rh3 {[%clk 0:01:32.1]} 29. Qg6
{[%clk 0:00:56.7]} 29... Rh1+ {[%clk 0:01:30.1]} 0-1